lending/lending_fUSD_20251021
["ID","MTS","AMOUNT","RATE_DAILY","PERIOD"]
[391941730,1761016239845,-1022.69,0.00032548,2]
[391941732,1761016239854,-168.4,0.00032548,2]
[391941735,1761016239864,-547.23,0.00032548,2]
[391941737,1761016239874,-301.68,0.00032548,2]
[391941739,1761016239883,-446.7,0.00032548,2]
[391941741,1761016239893,-545.94,0.00032548,2]
[391941743,1761016239902,-168.4,0.00032548,2]
[391941745,1761016239912,-414.05,0.00032548,2]
[391941747,1761016239922,-276.26,0.00032548,2]
[391941749,1761016239932,-414.05,0.00032548,2]
[391941751,1761016239942,-168.4,0.00032548,2]
[391941753,1761016239950,-176.22,0.00032548,2]
[391941755,1761016239960,-414.05,0.00032548,2]
[391941757,1761016239970,-422.353964,0.00032548,30]
[391941759,1761016239979,-422.353964,0.00032548,30]
[391941761,1761016239990,-422.353964,0.00032548,30]
[391941762,1761016240001,-422.353964,0.00032548,30]
[391941764,1761016240010,-14533.77626301,0.0003257,2]
[391941766,1761016240020,-549.08,0.00032584,2]
[391941768,1761016240030,-2009.363352,0.00032585,2]
[391941770,1761016240041,-151.0,0.00032585,30]
[391941772,1761016240052,-151.0,0.00032585,30]
[391941775,1761016240061,-152.0,0.00032595,5]
[391941776,1761016240070,-500.0,0.00032657,7]
[391941778,1761016240080,-167.34157209,0.00032658,30]
[391941781,1761016240091,-500.0,0.00032665,7]
[391941783,1761016240101,-500.0,0.00032701,7]
[391941784,1761016240110,-646.22,0.000328,60]
[391941786,1761016240124,-12082.41116454,0.00032829,2]
[391941789,1761016240134,-2040.79,0.00032876,120]
[391941791,1761016240145,-1000.0,0.00032876,30]
[391941793,1761016240154,-255.65,0.00032877,2]
[391941795,1761016240163,-151.0,0.00032877,30]
[391941796,1761016240177,-300.0,0.00032877,60]
[391941798,1761016240186,-300.0,0.00032877,60]
[391941800,1761016240196,-419.391798,0.00032877,60]
[391941802,1761016240206,-500.0,0.00032877,2]
[391941805,1761016240216,-721.59,0.000329,30]
[391941806,1761016240229,-500.0,0.00032932,2]
[391941808,1761016240239,-500.0,0.00032969,7]
[391941811,1761016240249,-1000.0,0.00032973,5]
[391941812,1761016240259,-300.0,0.00032979,2]
[391941815,1761016240269,-1200.2,0.00032979,2]
[391941817,1761016240278,-300.98,0.00032979,2]
[391941818,1761016240288,-547.23,0.00032979,2]
[391941820,1761016240298,-300.0,0.00032979,2]
[391941823,1761016240307,-336.34,0.00032979,2]
[391941824,1761016240316,-178.54,0.00032979,2]
[391941827,1761016240326,-1200.2,0.00032979,2]
[391941829,1761016240335,-412.69,0.00032979,2]
[391941830,1761016240345,-1200.2,0.00032979,2]
[391941832,1761016240354,-1200.2,0.00032979,2]
[391941835,1761016240364,-570.75,0.00032979,2]
[391941836,1761016240375,-1972.0,0.0003298,2]
[391941838,1761016240384,-468.414638,0.00032986,30]
[391941840,1761016240393,-468.414638,0.00032986,30]
[391941843,1761016240403,-468.414638,0.00032986,30]
[391941844,1761016240412,-468.414638,0.00032986,30]
[391941847,1761016240422,-475.23,0.00032986,2]
[391941848,1761016240432,-695.92,0.00032986,2]
[391941851,1761016240441,-475.23,0.00032986,2]
[391941853,1761016240451,-695.92,0.00032986,2]
[391941855,1761016240461,-1049.66,0.00032986,2]
[391941856,1761016240470,-169.3,0.00032986,2]
[391941859,1761016240480,-500.0,0.00032987,2]
[391941860,1761016240490,-176.83312215,0.00033,120]
[391941862,1761016240499,-170.16312638,0.00033,120]
[391941864,1761016240508,-183.141745,0.00033,120]
[391941866,1761016240518,-409.44708623,0.00033,120]
[391941868,1761016240527,-418.48837443,0.00033,120]
[391941870,1761016240537,-10086.17967195,0.00033,120]
[391941872,1761016240547,-201.47583313,0.00033,120]
[391941875,1761016240557,-5000.0,0.00033,5]
[391941877,1761016240569,-1999.99,0.00033,2]
[391941879,1761016240579,-2000.0,0.00033,2]
[391941881,1761016240587,-1796.2,0.00033,2]
[391941883,1761016240598,-34951.45,0.00033,10]
[391941885,1761016240608,-268.06875356,0.00033,120]
[391941887,1761016240618,-2675.56650794,0.00033,2]
[391941889,1761016240628,-476.03091061,0.00033,10]
[391941891,1761016240638,-1000.0,0.00033013,30]
[391941893,1761016240647,-167.34157209,0.00033014,30]
[391941895,1761016240657,-500.0,0.00033041,2]
[391941897,1761016240667,-200.0,0.00033092,2]
[391941899,1761016240678,-200.0,0.00033093,2]
[391941901,1761016240688,-200.0,0.00033094,2]
[391941903,1761016240699,-500.0,0.00033095,7]
[391941905,1761016240709,-200.0,0.00033096,2]
[391941907,1761016240718,-500.0,0.00033096,2]
[391941909,1761016240729,-200.0,0.00033097,2]
[391941911,1761016240739,-200.0,0.00033097,2]
[391941913,1761016240750,-200.0,0.00033097,2]
[391941915,1761016240759,-200.0,0.00033097,2]
[391941917,1761016240769,-200.0,0.00033097,2]
[391941919,1761016240779,-200.0,0.00033103,2]
[391941921,1761016240789,-300.0,0.00033107,61]
[391941923,1761016240799,-1000.0,0.0003315,30]
[391941925,1761016240808,-500.0,0.00033151,2]
[391941927,1761016240818,-372.69,0.00033165,2]
[391941929,1761016240827,-338.02444998,0.00033186,2]
[391941931,1761016240837,-800.0,0.00033205,7]
[391941933,1761016240847,-1400.0,0.00033205,7]
[391941935,1761016240857,-7211.0,0.00033205,2]
[391941937,1761016240868,-500.0,0.00033206,2]
[391941940,1761016240878,-20039.59327582,0.0003324,3]
[391941941,1761016240887,-20000.0,0.0003324,4]
[391941943,1761016240897,-500.0,0.00033254,7]
[391941946,1761016240907,-902.0,0.00033257,2]
[391941947,1761016240916,-2548.0,0.00033257,2]
[391941949,1761016240926,-1245.14255868,0.00033258,5]
[391941951,1761016240935,-176.22,0.0003326,2]
[391941953,1761016240944,-176.22,0.0003326,2]
[391941955,1761016240953,-176.22,0.0003326,2]
[391941957,1761016240962,-547.23,0.0003326,2]
[391941959,1761016240973,-150.0,0.0003326,2]
[391941961,1761016240982,-168.4,0.0003326,2]
[391941964,1761016240992,-414.05,0.0003326,2]
[391941965,1761016241002,-437.95,0.0003326,2]
[391941967,1761016241011,-175.46,0.0003326,2]
[391941970,1761016241022,-167.93,0.0003326,2]
[391941971,1761016241035,-150.0,0.0003326,2]
[391941973,1761016241045,-414.05,0.0003326,2]
[391941975,1761016241055,-414.05,0.0003326,2]
[391941977,1761016241064,-353.93,0.0003326,2]
[391941979,1761016241075,-500.0,0.00033261,2]
[391941981,1761016241085,-1000.0,0.00033287,30]
[391941983,1761016241094,-600.0,0.00033295,7]
[391941985,1761016241104,-500.0,0.00033315,2]
[391941987,1761016241114,-14533.77626301,0.00033325,2]
[391941989,1761016241124,-500.0,0.00033362,7]
[391941991,1761016241133,-175.34,0.0003337,2]
[391941993,1761016241142,-412.17,0.0003337,2]
[391941995,1761016241152,-500.0,0.0003337,2]
[391941997,1761016241165,-171.1959036,0.00033377,30]
[391942000,1761016241175,-167.34157209,0.00033397,30]
[391942002,1761016241184,-209.75,0.000334,120]
[391942003,1761016241194,-600.0,0.00033423,7]
[391942005,1761016241204,-1000.0,0.00033424,30]
[391942007,1761016241214,-505.40682951,0.00033425,2]
[391942009,1761016241224,-815.0,0.0003351,13]
[391942011,1761016241233,-800.0,0.0003351,13]
[391942013,1761016241243,-800.0,0.0003351,13]
[391942015,1761016241252,-800.0,0.0003351,13]
[391942017,1761016241261,-800.0,0.0003351,13]
[391942019,1761016241270,-800.0,0.0003351,13]
[391942021,1761016241279,-800.0,0.0003351,13]
[391942023,1761016241289,-524.0,0.0003351,13]
[391942025,1761016241299,-561.244692,0.00033512,120]
[391942027,1761016241308,-1898.843415,0.00033512,120]
[391942029,1761016241318,-500.0,0.00033512,120]
[391942031,1761016241327,-5338.93211732,0.00033542,2]
[391942033,1761016241336,-1000.0,0.00033561,30]
[391942035,1761016241347,-2040.79,0.00033698,120]
[391942037,1761016241357,-1000.0,0.00033698,30]
[391942038,1761016241367,-543.70814822,0.00033698,30]
[391942039,1761016241376,-1000.0,0.00033698,30]
[391942040,1761016241385,-393.22439183,0.00033699,120]
[391942041,1761016241395,-167.34157209,0.00033753,30]
[391942042,1761016241405,-600.0,0.00033782,7]
[391942043,1761016241414,-600.0,0.00033807,7]
[391942044,1761016241424,-1000.0,0.00033835,30]
[391942045,1761016241433,-500.0,0.00033857,7]
[391942046,1761016241443,-500.0,0.00033891,7]
[391942047,1761016241453,-549.08,0.00033899,2]
[391942049,1761016241563,-170.16312638,0.000339,120]
[391942050,1761016241573,-183.141745,0.000339,120]
[391942052,1761016241582,-409.44708623,0.000339,120]
[391942054,1761016241591,-418.48837443,0.000339,120]
[391942056,1761016241600,-10086.17967195,0.000339,120]
[391942058,1761016241610,-201.47583313,0.000339,120]
[391942060,1761016241619,-10035.12660317,0.000339,14]
[391942062,1761016241628,-151.0,0.000339,30]
[391942064,1761016241638,-151.0,0.000339,30]
[391942066,1761016241647,-151.0,0.000339,30]
[391942068,1761016241656,-500.0,0.00033939,60]
[391942070,1761016241666,-441.3670657,0.00033941,2]
[391942072,1761016241676,-31348.91393209,0.00033958,2]
[391942074,1761016241686,-1000.0,0.00033972,30]
[391942076,1761016241696,-46937.56003951,0.00033999,2]
[391942078,1761016241706,-500.0,0.00033999,30]
[391942080,1761016241717,-468.414638,0.00033999,30]
[391942082,1761016241727,-468.414638,0.00033999,30]
[391942084,1761016241736,-468.414638,0.00033999,30]
[391942086,1761016241746,-468.414638,0.00033999,30]
[391942088,1761016241755,-422.353964,0.00033999,30]
[391942090,1761016241765,-422.353964,0.00033999,30]
[391942092,1761016241775,-422.353964,0.00033999,30]
[391942094,1761016241784,-422.353956,0.00033999,30]
[391942096,1761016241794,-572.10680401,0.00033999,10]
[391942098,1761016241804,-1008.2913,0.00034,2]
[391942100,1761016241813,-1000.0,0.00034,2]
[391942102,1761016241823,-1000.0,0.00034,2]
[391942104,1761016241832,-1000.0,0.00034,2]
[391942106,1761016241842,-1000.0,0.00034,2]
[391942108,1761016241851,-1000.0,0.00034,2]
[391942110,1761016241861,-1000.0,0.00034,2]
[391942112,1761016241871,-1000.0,0.00034,2]
[391942114,1761016241881,-56041.13281948,0.00034,30]
[391942145,1761016242171,-68410.70458097,0.00034,30]
[391942147,1761016242181,-1000.0,0.00034,2]
[391942149,1761016242190,-1017.86,0.00034,2]
[391942151,1761016242199,-802.146725,0.00034,90]
[391942153,1761016242209,-1000.0,0.00034,2]
[391942155,1761016242218,-152.0,0.00034022,6]
[391942157,1761016242229,-800.0,0.00034027,7]
[391942159,1761016242238,-1400.0,0.00034027,7]
[391942161,1761016242248,-441.3670657,0.00034057,2]
[391942163,1761016242257,-666.0,0.00034079,10]
[391942165,1761016242267,-549.08,0.00034079,2]
[391942167,1761016242276,-2785.18706251,0.0003408,30]
[391942169,1761016242286,-2785.18706251,0.0003408,30]
[391942171,1761016242294,-2785.18706251,0.0003408,30]
[391942174,1761016242305,-2785.18706251,0.0003408,30]
[391942175,1761016242314,-2785.18706251,0.0003408,30]
[391942177,1761016242324,-2785.18706251,0.0003408,30]
[391942180,1761016242336,-2785.18706251,0.0003408,30]
[391942182,1761016242347,-2785.18706251,0.0003408,30]
[391942184,1761016242356,-2785.18706251,0.0003408,30]
[391942186,1761016242365,-2785.18706251,0.0003408,30]
[391942188,1761016242375,-2785.18706251,0.0003408,30]
[391942190,1761016242384,-2785.18706251,0.0003408,30]
[391942192,1761016242393,-2785.18706251,0.0003408,30]
[391942194,1761016242403,-2785.18706251,0.0003408,30]
[391942196,1761016242412,-2785.18706251,0.0003408,30]
[391942198,1761016242421,-2785.18706251,0.0003408,30]
[391942200,1761016242431,-2785.18706251,0.0003408,30]
[391942202,1761016242440,-2785.18706251,0.0003408,30]
[391942204,1761016242449,-2785.18706251,0.0003408,30]
[391942206,1761016242459,-2785.18,0.0003408,30]
[391942208,1761016242468,-6498.76981253,0.0003408,30]
[391942210,1761016242479,-6498.76981253,0.0003408,30]
[391942211,1761016242488,-6498.76981253,0.0003408,30]
[391942213,1761016242498,-6498.76981253,0.0003408,30]
[391942216,1761016242508,-6498.76981253,0.0003408,30]
[391942217,1761016242518,-6498.76981253,0.0003408,30]
[391942220,1761016242527,-6498.76981253,0.0003408,30]
[391942221,1761016242537,-6498.76981253,0.0003408,30]
[391942224,1761016242546,-6498.76981253,0.0003408,30]
[391942226,1761016242555,-6498.76981253,0.0003408,30]
[391942227,1761016242565,-5068.15831366,0.0003408,30]
[391942231,1761016242578,-1430.61149887,0.0003408,30]
[391942234,1761016242587,-6498.76981253,0.0003408,30]
[391942237,1761016242596,-6498.76981253,0.0003408,30]
[391942240,1761016242605,-6498.76981253,0.0003408,30]
[391942243,1761016242614,-6498.76981253,0.0003408,30]
[391942246,1761016242624,-6498.76981253,0.0003408,30]
[391942249,1761016242633,-6498.76981253,0.0003408,30]
[391942252,1761016242642,-6498.76981253,0.0003408,30]
[391942255,1761016242652,-6498.76981253,0.0003408,30]
[391942258,1761016242661,-218.03297098,0.0003408,30]
[391942261,1761016242670,-468.414638,0.0003408,30]
[391942264,1761016242680,-468.414638,0.0003408,30]
[391942267,1761016242688,-468.414638,0.0003408,30]
[391942269,1761016242698,-468.414643,0.0003408,30]
[391942272,1761016242707,-699.99461884,0.0003408,2]
[391942275,1761016242717,-14533.77626301,0.0003408,2]
[391942299,1761016242842,-1829.27671819,0.0003408,2]
[391942302,1761016242852,-266.43203755,0.0003408,2]
[391942305,1761016242862,-12082.41116454,0.00034092,2]
[391942307,1761016242871,-653.52,0.000341,2]
[391942310,1761016242880,-9268.59,0.000341,2]
[391942312,1761016242889,-215.83991092,0.00034109,30]
[391942314,1761016242899,-311.40465589,0.0003417,2]
[391942317,1761016242908,-311.40465589,0.0003417,2]
[391942319,1761016242918,-441.3670657,0.00034172,2]
[391942321,1761016242927,-6498.76,0.00034176,30]
[391942323,1761016242936,-218.03,0.00034176,30]
[391942325,1761016242946,-549.08,0.00034179,2]
[391942327,1761016242955,-549.08,0.00034179,2]
[391942329,1761016242965,-549.08,0.00034179,2]
[391942331,1761016242974,-549.08,0.00034179,2]
[391942333,1761016242984,-549.08,0.00034179,2]
[391942335,1761016242994,-549.08,0.00034179,2]
[391942337,1761016243003,-549.08,0.00034179,2]
[391942339,1761016243013,-549.08,0.00034179,2]
[391942341,1761016243022,-549.08,0.00034179,2]
[391942343,1761016243034,-549.08,0.00034179,2]
[391942345,1761016243044,-549.08,0.00034179,2]
[391942347,1761016243054,-549.08,0.00034179,2]
[391942349,1761016243063,-549.08,0.00034179,2]
[391942351,1761016243074,-549.08,0.00034179,2]
[391942353,1761016243084,-549.25805869,0.00034179,2]
[391942355,1761016243093,-616.6068,0.00034179,3]
[391942357,1761016243102,-152922.87164841,0.0003418,120]
[391942359,1761016243115,-105640.75459586,0.0003418,120]
[391942361,1761016243126,-250.0,0.0003418,120]
[391942375,1761016243246,-443.0,0.000213,2]
[391942377,1761016243257,-500.0,0.0002138,2]
[391942379,1761016243266,-201.0,0.0002138,2]
[391942381,1761016243279,-67.33500281,0.0002138,2]
[391942383,1761016243289,-201.67100782,0.0002138,2]
[391942385,1761016243298,-615.5156736,0.0002138,2]
[391942387,1761016243308,-412.8989822,0.0003018,2]
[391942389,1761016243317,-190.19625458,0.0003408,2]
[391942391,1761016243327,-17413.51213237,0.0003418,120]
[391942394,1761016243338,-641.62741824,0.0003418,120]
[391942396,1761016243349,-457.98963954,0.0003418,120]
[391942398,1761016243360,-3422.31360684,0.0003418,120]
[391942401,1761016243374,-412.8989822,0.00030981,2]
[391942403,1761016243383,-640.70959707,0.0003418,120]
[391942408,1761016243422,-150.0,0.00033377,3]
[391942410,1761016243431,-150.0,0.0003387,3]
[391942412,1761016243440,-13814.12738922,0.0003418,120]
[391942414,1761016243451,-2885.87261078,0.0003418,120]
[391942416,1761016243461,-10667.63216685,0.0003418,120]
[391942418,1761016243475,-1418.30311925,0.0003418,120]
[391942544,1761016246080,-367.49199984,0.0002296,2]
[391942545,1761016262568,718.54165654,0.00025255,120]
[391942546,1761016266228,300.0,0.00025255,120]
[391942547,1761016266324,300.0,0.0002446,120]
[391942548,1761016266429,300.0,0.00028324,120]
[391942549,1761016266528,300.0,0.00028324,120]
[391942550,1761016266632,192.32509536,0.00028324,120]
[391942551,1761016369105,231.0,0.00030137,120]
[391942552,1761016373703,-204.90186864,0.00013753,2]
[391942553,1761016373976,-52.87293136,0.00013753,2]
[391942554,1761016508673,500.0,0.0003013,120]
[391942556,1761016583906,-151.0,0.0001614,2]
[391942557,1761016583929,-151.0,0.00016142,2]
[391942558,1761016583952,-99.64640374,0.0001618,2]
[391942559,1761016585167,-51.35359626,0.0001618,2]
[391942560,1761016612078,200.0,0.0003,120]
[391942561,1761016664444,200.0,0.0003,120]
[391942562,1761016673678,-272.5191036,0.00017756,2]
[391942563,1761016673998,-272.5191036,0.00017756,2]
[391942565,1761016706440,840.0,0.0003,120]
[391942574,1761016837209,2020.0,0.00030137,120]
[391942579,1761016974081,436.81,0.0003,120]
[391942642,1761017431931,-309.66,0.00013699,2]
[391942644,1761017431941,-157.855279,0.00014825,2]
[391942646,1761017431951,-162.8152171,0.000149,2]
[391942648,1761017431960,-956.60658213,0.00014968,2]
[391942651,1761017431985,-657.27551395,0.00014968,2]
[391942654,1761017431996,-701.85161916,0.00014968,2]
[391942655,1761017432005,-500.0,0.00014973,2]
[391942656,1761017432014,-1200.0,0.00014997,2]
[391942657,1761017432023,-1200.0,0.00014998,2]
[391942658,1761017432033,-300.0,0.00014998,2]
[391942659,1761017432043,-300.0,0.00014998,2]
[391942660,1761017432052,-150.0,0.00014998,2]
[391942661,1761017432062,-500.0,0.00014999,2]
[391942662,1761017432071,-207.37275378,0.00014999,2]
[391942663,1761017432081,-174.38161204,0.00014999,2]
[391942664,1761017432090,-187.83450197,0.00014999,2]
[391942665,1761017432099,-484.57515023,0.00014999,2]
[391942666,1761017432108,-500.0,0.00014999,2]
[391942667,1761017432117,-326.12275214,0.00014999,2]
[391942668,1761017432129,-82.51128415,0.00014999,2]
[391942669,1761017432138,-500.0,0.00014999,2]
[391942670,1761017432147,-500.0,0.00014999,2]
[391942671,1761017432156,-500.0,0.00014999,2]
[391942672,1761017432165,-500.0,0.00014999,2]
[391942673,1761017432174,-500.0,0.00014999,2]
[391942674,1761017432183,-500.0,0.00014999,2]
[391942675,1761017432192,-191.31984103,0.00014999,2]
[391942676,1761017432201,-500.0,0.00014999,2]
[391942677,1761017432210,-500.0,0.00014999,2]
[391942678,1761017432219,-500.0,0.00014999,2]
[391942679,1761017432228,-615768.80112415,0.00015,2]
[391942680,1761017432239,-1115.5,0.00015,2]
[391942681,1761017432250,-500.0,0.00015,2]
[391942682,1761017432262,-4466.8,0.00015,2]
[391942684,1761017432274,-175320.97703224,0.00015,2]
[391942685,1761017432286,-1004.41808677,0.00015,2]
[391942686,1761017432298,-1500.0,0.00015,2]
[391942696,1761017437990,-500.0,0.00014999,2]
[391942697,1761017437999,-1797.28550177,0.00015,2]
[391942698,1761017438045,-1466.0,0.00015,2]
[391942700,1761017438157,-3934.82653457,0.00015,2]
[391942865,1761017439954,-1902.07,0.00015,2]
[391942871,1761017440008,-476.1899999,0.00015,2]
[391942873,1761017440020,-166327.81341455,0.00015,2]
[391942876,1761017440032,-2860.95238278,0.00015,2]
[391942879,1761017440063,-5122.12676512,0.00015,2]
[391942886,1761017440118,-3464.4454591,0.00015,2]
[391942888,1761017440130,-2528.366838,0.00015,2]
[391942890,1761017440141,-769.95181218,0.00015,2]
[391942892,1761017440152,-280.69500015,0.00015,2]
[391942894,1761017440164,-776.42636932,0.00015,2]
[391942929,1761017440495,-1164.00858722,0.00015,2]
[391942932,1761017440505,-378.66,0.00015,2]
[391943178,1761017443018,-1000.0,0.00015,2]
[391943189,1761017443125,-504.83199552,0.00015,2]
[391943196,1761017443180,-30835.87268376,0.00015,2]
[391943198,1761017443191,-29414.13018875,0.00015,2]
[391943204,1761017443234,-1151.09062118,0.00015,2]
[391943275,1761017708187,742.91,0.00030137,120]
[391943310,1761018269297,159.14,8.101e-05,2]
[391943311,1761018269500,159.14,8.724e-05,2]
[391943312,1761018269700,159.14,9.348e-05,2]
[391943313,1761018269903,159.14,9.971e-05,2]
[391943314,1761018270111,159.14,0.00010594,2]
[391943315,1761018270324,159.14,0.00011217,2]
[391943316,1761018270527,159.14,0.0001184,2]
[391943317,1761018270737,159.14,0.00012463,2]
[391943318,1761018270931,159.14,0.00013087,2]
[391943321,1761018324779,-150.0,0.00013488,2]
[391943322,1761018324801,-150.0,0.00013488,2]
[391943323,1761018324821,-150.93676871,0.00013488,2]
[391943324,1761018324842,-150.0,0.00013516,2]
[391943325,1761018324863,-134.56512075,0.00013528,2]
[391943326,1761018327948,-15.43487925,0.00013528,2]
[391943327,1761018327973,-150.0,0.00013544,2]
[391943328,1761018327994,-150.0,0.00013569,2]
[391943329,1761018328015,-150.0,0.00013572,2]
[391943330,1761018328055,-133.44712151,0.00013601,2]
[391943331,1761018332215,-150.0,0.00013488,2]
[391943332,1761018332238,-129.24059853,0.00013488,2]
[391943333,1761018333753,-20.75940147,0.00013488,2]
[391943334,1761018333776,-150.0,0.00013488,2]
[391943335,1761018333801,-129.24059853,0.00013488,2]
[391943336,1761018338596,-20.75940147,0.00013488,2]
[391943337,1761018338623,-150.0,0.00013488,2]
[391943338,1761018338652,-129.24059853,0.00013488,2]
[391943339,1761018342696,-20.75940147,0.00013488,2]
[391943340,1761018342720,-150.0,0.00013488,2]
[391943341,1761018342747,-142.25814254,0.00013532,2]
[391943342,1761018344442,-150.0,0.00013488,2]
[391943343,1761018344473,-85.34959081,0.00013488,2]
[391943344,1761018350547,-64.65040919,0.00013488,2]
[391943345,1761018350570,-129.96823276,0.00013513,2]
[391943346,1761018353281,-150.0,0.00013488,2]
[391943347,1761018353305,-20.03176724,0.00013513,2]
[391943348,1761018353328,-7.74185746,0.00013532,2]
[391943349,1761018353351,-31.78347095,0.00013535,2]
[391943352,1761018371452,-151.01964376,0.00013488,2]
[391943353,1761018371473,-0.67930867,0.00013488,2]
[391943354,1761018373527,-149.32069133,0.00013488,2]
[391943355,1761018373552,-110.09867454,0.00013532,2]
[391943356,1761018380123,-39.90132546,0.00013532,2]
[391943357,1761018380146,-118.21652905,0.00013535,2]
[391943358,1761018380174,-150.0,0.00013538,2]
[391943359,1761018380200,-150.0,0.00013543,2]
[391943360,1761018380223,-112.06170351,0.00013545,2]
[391943361,1761018383210,-37.93829649,0.00013545,2]
[391943362,1761018383232,-150.0,0.00013563,2]
[391943363,1761018383255,-72.87719882,0.00013576,2]
[391943364,1761018390352,-77.12280118,0.00013576,2]
[391943365,1761018390373,-150.0,0.00013576,2]
[391943366,1761018390394,-22.87719882,0.00013581,2]
[391943367,1761018392582,-127.12280118,0.00013581,2]
[391943368,1761018392604,-66.63052145,0.00013581,2]
[391943369,1761018396272,-83.36947855,0.00013581,2]
[391943370,1761018396295,-150.0,0.00013588,2]
[391943371,1761018396316,-0.58941351,0.00013599,2]
[391943372,1761018399514,-149.41058649,0.00013599,2]
[391943373,1761018399539,-16.55287849,0.00013601,2]
[391943374,1761018399567,-17.74882502,0.00013603,2]
[391943375,1761018405250,-132.25117498,0.00013603,2]
[391943376,1761018405273,-150.0,0.00013603,2]
[391943377,1761018405295,-150.0,0.00013609,2]
[391943378,1761018405317,-10.3351895,0.00013613,2]
[391943379,1761018407028,-139.6648105,0.00013613,2]
[391943380,1761018407056,-80.48696702,0.0001362,2]
[391943381,1761018408680,-69.51303298,0.0001362,2]
[391943382,1761018408702,-150.0,0.0001362,2]
[391943383,1761018408724,-22.69781614,0.00013628,2]
[391943384,1761018411972,-127.30218386,0.00013628,2]
[391943385,1761018411996,-62.91519937,0.00013629,2]
[391943386,1761018414645,-87.08480063,0.00013629,2]
[391943387,1761018414667,-100.74540482,0.00013638,2]
[391943388,1761018416708,-49.25459518,0.00013638,2]
[391943389,1761018416730,-150.0,0.0001365,2]
[391943390,1761018416755,-0.76169594,0.00013654,2]
[391943391,1761018421762,-149.23830406,0.00013654,2]
[391943392,1761018421785,-108.28672431,0.00013657,2]
[391943393,1761018424000,-41.71327569,0.00013657,2]
[391943394,1761018424022,-150.0,0.00013661,2]
[391943395,1761018424043,-150.0,0.00013663,2]
[391943396,1761018424064,-124.99898193,0.00013664,2]
[391943397,1761018428371,-25.00101807,0.00013664,2]
[391943398,1761018428393,-150.0,0.00013664,2]
[391943399,1761018428415,-19.99898193,0.00013675,2]
[391943401,1761018444797,-130.00101807,0.00013675,2]
[391943402,1761018444820,-150.0,0.00013675,2]
[391943403,1761018444842,-40.2495816,0.00013686,2]
[391943404,1761018450188,-109.7504184,0.00013686,2]
[391943405,1761018450211,-63.05291064,0.00013687,2]
[391943406,1761018452972,-86.94708936,0.00013687,2]
[391943407,1761018452995,-89.19291064,0.0001369,2]
[391943408,1761018454481,-60.80708936,0.0001369,2]
[391943409,1761018454505,-150.0,0.00013708,2]
[391943410,1761018454532,-21.48596854,0.00013708,2]
[391943411,1761018475304,-154.63452198,0.00013652,2]
[391943412,1761018475326,-7.29847379,0.00013708,2]
[391943413,1761018476811,-121.21555767,0.00013708,2]
[391943414,1761018476834,-104.80122373,0.0001371,2]
[391943415,1761018481121,-45.19877627,0.0001371,2]
[391943416,1761018481144,-153.66250318,0.0001371,2]
[391943417,1761018485317,-5.47749682,0.0001371,2]
[391943418,1761018485338,-150.0,0.00013712,2]
[391943419,1761018485359,-94.52250318,0.00013714,2]
[391943420,1761018488571,-55.47749682,0.00013714,2]
[391943421,1761018488597,-98.36604718,0.00013718,2]
[391943422,1761018504691,-51.63395282,0.00013718,2]
[391943423,1761018504718,-150.0,0.00013718,2]
[391943424,1761018504742,-4.68954283,0.00013722,2]
[391943425,1761018509075,-145.31045717,0.00013722,2]
[391943426,1761018509117,-150.0,0.00013731,2]
[391943427,1761018509156,-77.08097403,0.00013737,2]